[Event "51st Rilton Cup 2023-24"]
[Site "Stockholm"]
[Date "2024.01.03"]
[Round "7.21"]
[White "Kavutskiy, Konstantin"]
[Black "Subelj, Jan"]
[Result "0-1"]
[ECO "D45"]
[WhiteElo "2384"]
[BlackElo "2512"]
[Annotator "TA"]
[PlyCount "56"]
[EventDate "2023.12.27"]
[EventType "swiss"]
[EventCountry "SWE"]
[SourceTitle "playchess.com"]
[Source "ChessBase"]
[SourceQuality "1"]
[TimeControl "40/5400+30:1800+30"]

{[%evp 15,56,-10,-19,-31,-23,-40,-38,-55,-55,-59,-41,-46,-22,-78,-81,-110,-97,-137,-118,-162,-127,-157,-122,-152,-101,-164,-165,-268,-185,-180,-202,-241,-211,-654,-606,-1675,-1672,-29982,-1798,-1636,-1620,-2089,-1389]} 1. d4 {[%emt 0:10:02]} Nf6 {[%emt 0:00:56]} 2. c4 {[%emt 0:00:20]} e6 {[%emt 0:00:35]} 3. Nf3 {[%emt 0:00:08]} d5 {[%emt 0:00:28]} 4. Nc3 {[%emt 0:00:10]} c6 {[%emt 0:00:42]} 5. e3 {[%emt 0:01:20]} Nbd7 {[%emt 0:00:20]} 6. Qc2 {[%emt 0:00:21]} Bd6 {[%emt 0:00:43]} 7. Bd2 {[%emt 0:00:42]} O-O {[%emt 0:02:29]} 8. O-O-O {[%emt 0:00:22] [#]} b5 $1 {[%emt 0:09:14] 8...a6 is the modern continuation.} 9. e4 {[%emt 0:01:39] D45: Semi-Slav: 5 e3.} (9. cxb5 Bb7) 9... Nxe4 {[%emt 0:08:37]} (9... bxc4 10. e5 $16) 10. Nxe4 {[%emt 0:01:58]} dxe4 {[%emt 0:00:07]} 11. Qxe4 {[%emt 0:01:54] Black is slightly better.} bxc4 {[%emt 0:00:16]} 12. Bxc4 {[%emt 0:00:58]} Nf6 {[%emt 0:01:04]} 13. Qh4 {[%emt 0:02:17] [#]} (13. Qxc6 Rb8 14. Kb1 Bb7 $17) 13... Nd5 $146 {[%emt 0:01:47]} ({Predecessor:} 13... a5 14. Bg5 Ba6 15. Bxf6 Qxf6 16. Qxf6 gxf6 17. Bxa6 Rxa6 18. Rd3 Rb8 19. Kc2 a4 {1-0 Rustemov,A (2525)-Kobalia,M (2596) Chess.com Rapid Wk14 Swiss 2022 (2)}) 14. Qe4 {[%emt 0:14:32]} (14. Ng5 h6 15. Nf3 Qxh4 16. Nxh4 Bb7 17. Bxd5 cxd5 $17) (14. Qxd8 $1 $11 {keeps the balance.} Rxd8 15. Bg5) 14... a5 {[%emt 0:08:46][%cal Ba7a5,Ba5a4][%mdl 32]} (14... Qb6 {is more complex.} 15. Ng5 Nf6 16. Qc2 h6) 15. Bd3 {[%emt 0:02:35][%csl Gd3][%cal Re4h7]} f5 {[%emt 0:02:06]} 16. Qe2 {[%emt 0:00:27]} Qb6 {[%emt 0:00:41]} 17. Bc4 {[%emt 0:14:04]} Rb8 {[%emt 0:01:26][%csl Gb8][%cal Rb6b2]} 18. b3 {[%emt 0:00:20] [#]} a4 $1 {[%emt 0:01:09][%cal Ra4b3][%mdl 512] White must now prevent ...axb3.} 19. Kb2 {[%emt 0:00:51]} (19. Kc2 c5) 19... h6 {[%emt 0:07:17] Black is more active.} (19... axb3 20. axb3 c5 21. dxc5 Bxc5 22. Ra1 $17) (19... Kh8 $142 20. Rhe1 c5) 20. Rhg1 {[%emt 0:02:48]} (20. Ka1 $17 {was called for.}) 20... c5 $36 {[%emt 0:01:04][%cal Bc6c5,Bc5d4][%mdl 2080] White is under strong pressure.} ({Inferior is} 20... axb3 21. axb3 c5 22. Be3 $17) 21. g4 {[%emt 0:01:52]} (21. Qd3 $142) 21... axb3 {[%emt 0:02:26]} 22. axb3 {[%emt 0:00:46]} cxd4 {[%emt 0:02:51] And now ...fxg4 would win.} 23. gxf5 {[%emt 0:07:01]} Rxf5 {[%emt 0:02:03]} 24. Nh4 $2 {[%emt 0:02:42]} (24. Bxh6 Ba3+ 25. Kc2) 24... Rf7 $19 {[%emt 0:03:44]} 25. Bxh6 {[%emt 0:07:26]} Qa5 {[%emt 0:02:17]} ({Not} 25... Bxh2 26. Rxg7+ Rxg7 27. Bxg7 Kxg7 28. Qg4+ Kf8 29. Ng6+ Kf7 30. Nh8+ Kf8 31. Ng6+ Kf7 32. Nh8+ Kf8 33. Ng6+ $11) 26. Rd3 {[%emt 0:02:46]} Ra8 {[%emt 0:01:55]} (26... Bxh2 27. Rxg7+ Rxg7 28. Bxd5 Qxd5 29. Bxg7 Kxg7 30. Qg4+ Kf7 31. f4 $15) (26... Nc3 $142 27. Rxd4 Nxe2 28. Rd3 Be5+ 29. Kc2 Nxg1 30. Nf5 Rxf5 31. Be3 Qa2+ 32. Kd1 Ba6 33. Bxe6+ Kh8 34. Bxf5 Qe2+ 35. Kc1 Rc8+ 36. Rc3 Qe1+ {[%mdl 64] Pin, Double Attack} 37. Kc2 Qxc3+ 38. Kd1 Be2#) 27. b4 {[%emt 0:06:43]} Bxb4 {[%emt 0:00:18] ( -> ...Bc3+)} 28. Rb1 {[%emt 0:03:34]} Nc3 {[%emt 0:01:59] White did not feel at home in the position after the opening. Ingenious play by Subelj!   Weighted Error Value: White=1.39/Black=0.36} 0-1

[Event "51st Rilton Cup 2023-24"]
[Site "Stockholm"]
[Date "2024.01.03"]
[Round "7.22"]
[White "Eggleston, David J"]
[Black "Sai Agni Jeevitesh, J."]
[Result "0-1"]
[ECO "C73"]
[WhiteElo "2353"]
[BlackElo "2302"]
[Annotator "RC"]
[PlyCount "63"]
[EventDate "2023.12.27"]
[EventType "swiss"]
[EventCountry "SWE"]
[SourceTitle "playchess.com"]
[Source "ChessBase"]
[SourceQuality "1"]
[TimeControl "40/5400+30:1800+30"]

1. e4 {[%emt 0:00:01]} e5 {[%emt 0:01:42]} 2. Nf3 {[%emt 0:00:10]} Nc6 {[%emt 0:00:24]} 3. Bb5 {[%emt 0:00:06]} a6 {[%emt 0:00:06]} 4. Ba4 {[%emt 0:00:04]} Nf6 {[%emt 0:00:06]} 5. O-O {[%emt 0:00:10]} d6 {[%emt 0:00:47]} 6. Bxc6+ {[%emt 0:06:18]} bxc6 {[%emt 0:00:12]} 7. d4 {[%emt 0:00:28]} exd4 {[%emt 0:00:52]} 8. Qxd4 {[%emt 0:10:19]} Be7 {[%emt 0:14:43]} 9. Nc3 {[%emt 0:03:42]} O-O {[%emt 0:00:56]} 10. Bg5 {[%emt 0:05:18]} Nd7 {[%emt 0:12:27]} 11. Bxe7 {[%emt 0:01:41]} Qxe7 {[%emt 0:00:02]} 12. Rfe1 {[%emt 0:00:24]} Re8 {[%emt 0:01:49]} 13. Re3 {[%emt 0:09:46]} Ne5 {[%emt 0:12:27]} 14. b3 {[%emt 0:00:48]} c5 {[%emt 0:03:06]} 15. Qd2 {[%emt 0:00:48]} Bb7 {[%emt 0:02:36]} 16. Rae1 {[%emt 0:02:30]} Nxf3+ {[%emt 0:08:53]} 17. Rxf3 {[%emt 0:00:14]} a5 {[%emt 0:01:14]} 18. Rfe3 {[%emt 0:06:38]} Qg5 {[%emt 0:06:37]} 19. f3 {[%emt 0:04:37]} Bc6 {[%emt 0:00:50]} 20. Qf2 {[%emt 0:05:12]} a4 {[%emt 0:03:16]} 21. f4 {[%emt 0:01:52]} Qd8 {[%emt 0:02:43]} 22. e5 {[%emt 0:08:25]} d5 {[%emt 0:00:53]} 23. f5 {[%emt 0:02:04]} d4 {[%emt 0:04:29]} 24. Rd3 {[%emt 0:00:20]} f6 {[%emt 0:00:40]} 25. e6 {[%emt 0:00:59]} axb3 {[%emt 0:00:16]} 26. axb3 {[%emt 0:00:24]} Qe7 {[%emt 0:01:07]} 27. Ne2 {[%emt 0:03:27]} Ra2 {[%emt 0:03:53]} 28. Nf4 {[%emt 0:01:43]} Rea8 {[%emt 0:00:45]} 29. Rh3 {[%emt 0:06:20]} Ra1 {[%emt 0:00:27]} 30. Rxh7 {[%emt 0:00:31]} Be8 {[%emt 0:06:52]} 31. Qh4 {[%emt 0:01:27]} Rxe1+ {[%emt 0:00:20]} 32. Kf2 {[%emt 0:00:04]} 0-1

[Event "51st Rilton Cup 2023-24"]
[Site "Stockholm"]
[Date "2024.01.03"]
[Round "7.23"]
[White "Starosta, Martyna"]
[Black "Brilej, Jaka"]
[Result "1-0"]
[ECO "C16"]
[WhiteElo "2067"]
[BlackElo "2348"]
[Annotator "RC"]
[PlyCount "125"]
[EventDate "2023.12.27"]
[EventType "swiss"]
[EventCountry "SWE"]
[SourceTitle "playchess.com"]
[Source "ChessBase"]
[SourceQuality "1"]
[TimeControl "40/5400+30:1800+30"]

1. e4 {[%emt 0:02:07]} e6 {[%emt 0:02:26]} 2. d4 {[%emt 0:00:00]} d5 {[%emt 0:00:06]} 3. Nc3 {[%emt 0:00:00]} Bb4 {[%emt 0:00:24]} 4. e5 {[%emt 0:00:00]} b6 {[%emt 0:00:29]} 5. h4 {[%emt 0:05:44]} Ba6 {[%emt 0:06:33]} 6. Qg4 {[%emt 0:01:27]} Bf8 {[%emt 0:00:35]} 7. Nge2 {[%emt 0:08:54]} Ne7 {[%emt 0:08:14]} 8. Nf4 {[%emt 0:08:18]} Bxf1 {[%emt 0:00:56]} 9. Kxf1 {[%emt 0:00:24]} Nbc6 {[%emt 0:11:14]} 10. Nh5 {[%emt 0:04:01]} Nf5 {[%emt 0:03:12]} 11. Bg5 {[%emt 0:03:39]} Qc8 {[%emt 0:04:26]} 12. Rd1 {[%emt 0:03:34]} h6 {[%emt 0:02:03]} 13. Be3 {[%emt 0:02:26]} Qa6+ {[%emt 0:03:48]} 14. Qe2 {[%emt 0:01:01]} Qb7 {[%emt 0:00:50]} 15. g4 {[%emt 0:08:55]} Nxe3+ {[%emt 0:00:09]} 16. Qxe3 {[%emt 0:07:58]} O-O-O {[%emt 0:00:13]} 17. f4 {[%emt 0:05:58]} Na5 {[%emt 0:02:26]} 18. b3 {[%emt 0:02:18]} c5 {[%emt 0:01:36]} 19. Ne2 {[%emt 0:03:59]} Nc6 {[%emt 0:01:44]} 20. c3 {[%emt 0:00:00]} g6 {[%emt 0:14:14]} 21. Nf6 {[%emt 0:00:27]} cxd4 {[%emt 0:01:20]} 22. cxd4 {[%emt 0:00:54]} Be7 {[%emt 0:00:38]} 23. Ng1 {[%emt 0:05:18]} h5 {[%emt 0:04:10]} 24. g5 {[%emt 0:01:36]} Qa6+ {[%emt 0:01:27]} 25. Qe2 {[%emt 0:01:34]} Qa3 {[%emt 0:02:58]} 26. Rh2 {[%emt 0:03:56]} Kb7 {[%emt 0:00:23]} 27. Nf3 {[%emt 0:04:16]} Rc8 {[%emt 0:00:30]} 28. Qb2 {[%emt 0:02:06]} Qxb2 {[%emt 0:04:06]} 29. Rxb2 {[%emt 0:00:05]} Nb4 {[%emt 0:02:22]} 30. Ne1 {[%emt 0:05:13]} Rc3 {[%emt 0:01:08]} 31. a3 {[%emt 0:02:23]} Na6 {[%emt 0:01:41]} 32. Ra1 {[%emt 0:01:21]} Rhc8 {[%emt 0:04:49]} 33. Kg2 {[%emt 0:04:12]} Nc7 {[%emt 0:03:31]} 34. a4 {[%emt 0:00:20]} Na6 {[%emt 0:00:20]} 35. Rd1 {[%emt 0:01:37]} Nb4 {[%emt 0:00:47]} 36. Rdd2 {[%emt 0:00:31]} a5 {[%emt 0:01:48]} 37. Rb1 {[%emt 0:01:03]} Re3 {[%emt 0:07:14]} 38. Kf2 {[%emt 0:00:34]} Rh3 {[%emt 0:00:52]} 39. Kg2 {[%emt 0:00:19]} Rhc3 {[%emt 0:02:11]} 40. Kf2 {[%emt 0:00:52]} Ka6 {[%emt 0:00:50]} 41. Kg2 {[%emt 0:31:02]} Ka7 {[%emt 0:08:16]} 42. Kf2 {[%emt 0:00:00]} Kb8 {[%emt 0:00:07]} 43. Rdd1 {[%emt 0:00:00]} Nc2 {[%emt 0:04:32]} 44. Ng2 {[%emt 0:00:00]} Kc7 {[%emt 0:03:41]} 45. f5 {[%emt 0:00:00]} Bxf6 {[%emt 0:00:08]} 46. gxf6 {[%emt 0:00:00]} gxf5 {[%emt 0:00:36]} 47. Nf4 {[%emt 0:00:00]} Kd7 {[%emt 0:00:56]} 48. Nxh5 {[%emt 0:00:00]} Rh8 {[%emt 0:04:48]} 49. Rg1 {[%emt 0:03:42]} Rxh5 {[%emt 0:04:53]} 50. Rg7 {[%emt 0:00:05]} Nxd4 {[%emt 0:00:50]} 51. Rxf7+ {[%emt 0:00:06]} Kc6 {[%emt 0:00:23]} 52. Rg7 {[%emt 0:01:39]} f4 {[%emt 0:00:59]} 53. b4 {[%emt 0:00:25]} axb4 {[%emt 0:01:31]} 54. f7 {[%emt 0:00:40]} Rc2+ {[%emt 0:00:29]} 55. Kf1 {[%emt 0:00:13]} Rf5 {[%emt 0:00:20]} 56. Rxb4 {[%emt 0:00:34]} Nf3 {[%emt 0:01:54]} 57. a5 {[%emt 0:00:29]} Nh2+ {[%emt 0:01:49]} 58. Ke1 {[%emt 0:00:36]} f3 {[%emt 0:00:30]} 59. Rxb6+ {[%emt 0:00:10]} Kc5 {[%emt 0:00:05]} 60. f8=Q+ {[%emt 0:00:15]} Rxf8 {[%emt 0:00:09]} 61. Rc7+ {[%emt 0:00:05]} Kd4 {[%emt 0:00:08]} 62. Rxc2 {[%emt 0:00:08]} Ng4 {[%emt 0:00:24]} 63. Rb4+ {[%emt 0:00:40]} 1-0

[Event "51st Rilton Cup 2023-24"]
[Site "Stockholm"]
[Date "2024.01.03"]
[Round "7.24"]
[White "Srihari L"]
[Black "Nyysti, Sampsa"]
[Result "1-0"]
[ECO "C50"]
[WhiteElo "2272"]
[BlackElo "2339"]
[Annotator "RC"]
[PlyCount "107"]
[EventDate "2023.12.27"]
[EventType "swiss"]
[EventCountry "SWE"]
[SourceTitle "playchess.com"]
[Source "ChessBase"]
[SourceQuality "1"]
[TimeControl "40/5400+30:1800+30"]

1. e4 {[%emt 0:00:01]} e5 {[%emt 0:00:04]} 2. Nf3 {[%emt 0:00:03]} Nc6 {[%emt 0:00:06]} 3. Bc4 {[%emt 0:00:03]} d6 {[%emt 0:00:16]} 4. d3 {[%emt 0:01:11]} Be6 {[%emt 0:04:20]} 5. Bxe6 {[%emt 0:02:36]} fxe6 {[%emt 0:00:03]} 6. d4 {[%emt 0:04:00]} exd4 {[%emt 0:00:32]} 7. Nxd4 {[%emt 0:00:15]} Nxd4 {[%emt 0:00:23]} 8. Qxd4 {[%emt 0:00:09]} Nf6 {[%emt 0:00:11]} 9. Nc3 {[%emt 0:00:57]} Be7 {[%emt 0:00:10]} 10. e5 {[%emt 0:04:46]} dxe5 {[%emt 0:00:06]} 11. Qxe5 {[%emt 0:00:09]} Qd7 {[%emt 0:03:49]} 12. O-O {[%emt 0:06:22]} Bd6 {[%emt 0:02:03]} 13. Qe2 {[%emt 0:00:53]} O-O {[%emt 0:01:38]} 14. Bg5 {[%emt 0:01:23]} Nd5 {[%emt 0:04:27]} 15. Ne4 {[%emt 0:01:02]} Rae8 {[%emt 0:04:33]} 16. c4 {[%emt 0:02:00]} Nf4 {[%emt 0:06:35]} 17. Qg4 {[%emt 0:12:51]} Ng6 {[%emt 0:03:43]} 18. b3 {[%emt 0:05:22]} Qc6 {[%emt 0:07:56]} 19. Rfe1 {[%emt 0:01:29]} Bb4 {[%emt 0:19:28]} 20. Re2 {[%emt 0:08:07]} e5 {[%emt 0:02:04]} 21. g3 {[%emt 0:01:39]} Qe6 {[%emt 0:05:58]} 22. Qxe6+ {[%emt 0:01:17]} Rxe6 {[%emt 0:00:02]} 23. Rd1 {[%emt 0:00:48]} Ree8 {[%emt 0:02:35]} 24. a3 {[%emt 0:06:20]} Be7 {[%emt 0:02:40]} 25. Rd7 {[%emt 0:01:38]} Bxg5 {[%emt 0:04:15]} 26. Nxg5 {[%emt 0:00:24]} h6 {[%emt 0:00:13]} 27. Ne4 {[%emt 0:00:13]} Rf7 {[%emt 0:00:28]} 28. Red2 {[%emt 0:00:15]} Nf8 {[%emt 0:00:52]} 29. Rd8 {[%emt 0:03:16]} Rfe7 {[%emt 0:03:26]} 30. Nc5 {[%emt 0:01:40]} b6 {[%emt 0:06:18]} 31. Na6 {[%emt 0:01:25]} Kf7 {[%emt 0:07:27]} 32. Rxe8 {[%emt 0:05:44]} Kxe8 {[%emt 0:00:02]} 33. Nb4 {[%emt 0:00:50]} Rd7 {[%emt 0:02:28]} 34. Re2 {[%emt 0:01:52]} Rd1+ {[%emt 0:00:07]} 35. Kg2 {[%emt 0:00:09]} Nd7 {[%emt 0:00:34]} 36. Nc6 {[%emt 0:00:28]} Rd3 {[%emt 0:02:02]} 37. f4 {[%emt 0:11:54]} Rxb3 {[%emt 0:00:24]} 38. fxe5 {[%emt 0:00:05]} Rd3 {[%emt 0:03:24]} 39. Nxa7 {[%emt 0:02:18]} Rxa3 {[%emt 0:01:45]} 40. Nb5 {[%emt 0:00:15]} Ra4 {[%emt 0:00:34]} 41. Nxc7+ {[%emt 0:32:30]} Kd8 {[%emt 0:30:58]} 42. Ne6+ {[%emt 0:07:19]} Ke7 {[%emt 0:00:09]} 43. Nxg7 {[%emt 0:00:05]} Nxe5 {[%emt 0:01:07]} 44. Rxe5+ {[%emt 0:01:12]} Kf6 {[%emt 0:00:02]} 45. Re4 {[%emt 0:00:27]} Ra2+ {[%emt 0:01:45]} 46. Kf3 {[%emt 0:00:05]} Kxg7 {[%emt 0:00:12]} 47. h4 {[%emt 0:00:14]} Rb2 {[%emt 0:00:00]} 48. Kg4 {[%emt 0:00:00]} Rb3 {[%emt 0:00:00]} 49. Re7+ {[%emt 0:00:00]} Kg8 {[%emt 0:00:00]} 50. Rb7 {[%emt 0:00:00]} h5+ {[%emt 0:00:00]} 51. Kxh5 {[%emt 0:00:00]} Rxg3 {[%emt 0:00:00]} 52. Rxb6 {[%emt 0:00:00]} Kh7 {[%emt 0:00:00]} 53. Rb7+ {[%emt 0:00:00]} Kh8 {[%emt 0:00:00]} 54. c5 {[%emt 0:00:00]} 1-0

[Event "51st Rilton Cup 2023-24"]
[Site "Stockholm"]
[Date "2024.01.03"]
[Round "7.25"]
[White "Dotzer, Lukas"]
[Black "Duson, Robin"]
[Result "1-0"]
[ECO "B48"]
[WhiteElo "2338"]
[BlackElo "2175"]
[Annotator "RC"]
[PlyCount "47"]
[EventDate "2023.12.27"]
[EventType "swiss"]
[EventCountry "SWE"]
[SourceTitle "playchess.com"]
[Source "ChessBase"]
[SourceQuality "1"]
[TimeControl "40/5400+30:1800+30"]

1. e4 {[%emt 0:00:02]} c5 {[%emt 0:00:08]} 2. Nf3 {[%emt 0:00:04]} e6 {[%emt 0:00:05]} 3. d4 {[%emt 0:00:07]} cxd4 {[%emt 0:00:04]} 4. Nxd4 {[%emt 0:00:08]} Nc6 {[%emt 0:00:25]} 5. Nc3 {[%emt 0:00:08]} Qc7 {[%emt 0:00:14]} 6. Be3 {[%emt 0:00:06]} a6 {[%emt 0:00:22]} 7. Qd2 {[%emt 0:00:14]} Nf6 {[%emt 0:03:06]} 8. O-O-O {[%emt 0:00:20]} b5 {[%emt 0:03:56]} 9. Bf4 {[%emt 0:03:07]} Qa5 {[%emt 0:18:20]} 10. Nb3 {[%emt 0:06:43]} Qb6 {[%emt 0:04:02]} 11. f3 {[%emt 0:06:13]} e5 {[%emt 0:07:25]} 12. Be3 {[%emt 0:06:52]} Qb8 {[%emt 0:00:07]} 13. Nd5 {[%emt 0:11:31]} Nxd5 {[%emt 0:03:36]} 14. exd5 {[%emt 0:01:13]} Nd8 {[%emt 0:01:33]} 15. d6 {[%emt 0:06:00]} Nb7 {[%emt 0:04:31]} 16. Bc5 {[%emt 0:03:30]} g6 {[%emt 0:08:47]} 17. Qg5 {[%emt 0:02:53]} Nxc5 {[%emt 0:04:34]} 18. Qxe5+ {[%emt 0:01:41]} Ne6 {[%emt 0:00:07]} 19. Qxh8 {[%emt 0:00:16]} a5 {[%emt 0:00:35]} 20. Nd4 {[%emt 0:02:01]} b4 {[%emt 0:01:00]} 21. Bb5 {[%emt 0:01:39]} Ba6 {[%emt 0:02:07]} 22. Nxe6 {[%emt 0:04:22]} fxe6 {[%emt 0:00:15]} 23. Bc6 {[%emt 0:03:25]} Bb7 {[%emt 0:01:18]} 24. Ba4 {[%emt 0:02:12]} 1-0

[Event "51st Rilton Cup 2023-24"]
[Site "Stockholm"]
[Date "2024.01.03"]
[Round "7.26"]
[White "Lim, Zhuo Ren"]
[Black "Gombocz, Ferenc Jr."]
[Result "1/2-1/2"]
[ECO "D15"]
[WhiteElo "2218"]
[BlackElo "2366"]
[Annotator "RC"]
[PlyCount "84"]
[EventDate "2023.12.27"]
[EventType "swiss"]
[EventCountry "SWE"]
[SourceTitle "playchess.com"]
[Source "ChessBase"]
[SourceQuality "1"]
[TimeControl "40/5400+30:1800+30"]

1. d4 {[%emt 0:00:04]} d5 {[%emt 0:00:09]} 2. c4 {[%emt 0:00:08]} c6 {[%emt 0:00:16]} 3. Nf3 {[%emt 0:00:12]} Nf6 {[%emt 0:00:12]} 4. Nc3 {[%emt 0:00:11]} a6 {[%emt 0:00:08]} 5. g3 {[%emt 0:00:29]} b5 {[%emt 0:01:01]} 6. cxd5 {[%emt 0:02:19]} cxd5 {[%emt 0:00:09]} 7. Bg2 {[%emt 0:00:11]} e6 {[%emt 0:01:27]} 8. O-O {[%emt 0:00:18]} Bb7 {[%emt 0:00:41]} 9. Bg5 {[%emt 0:01:16]} Nbd7 {[%emt 0:06:39]} 10. a4 {[%emt 0:01:05]} b4 {[%emt 0:02:12]} 11. Na2 {[%emt 0:00:23]} a5 {[%emt 0:00:43]} 12. Nc1 {[%emt 0:00:13]} Bd6 {[%emt 0:02:55]} 13. Nd3 {[%emt 0:01:29]} h6 {[%emt 0:00:19]} 14. Bxf6 {[%emt 0:00:46]} Qxf6 {[%emt 0:00:23]} 15. Qd2 {[%emt 0:01:23]} O-O {[%emt 0:00:57]} 16. Rac1 {[%emt 0:00:50]} Rfc8 {[%emt 0:00:45]} 17. Rxc8+ {[%emt 0:02:29]} Rxc8 {[%emt 0:00:44]} 18. Rc1 {[%emt 0:00:09]} Qd8 {[%emt 0:01:32]} 19. e3 {[%emt 0:07:57]} Ba6 {[%emt 0:21:25]} 20. Bf1 {[%emt 0:00:52]} Nb6 {[%emt 0:10:10]} 21. b3 {[%emt 0:01:11]} Rxc1 {[%emt 0:08:09]} 22. Qxc1 {[%emt 0:00:15]} Qc8 {[%emt 0:00:27]} 23. Qxc8+ {[%emt 0:00:24]} Nxc8 {[%emt 0:00:26]} 24. Nde5 {[%emt 0:02:43]} Bxf1 {[%emt 0:00:32]} 25. Kxf1 {[%emt 0:00:04]} Na7 {[%emt 0:01:08]} 26. h4 {[%emt 0:06:32]} f6 {[%emt 0:00:38]} 27. Ng6 {[%emt 0:00:29]} Kf7 {[%emt 0:01:29]} 28. h5 {[%emt 0:00:49]} Nc6 {[%emt 0:00:12]} 29. Ke2 {[%emt 0:01:06]} e5 {[%emt 0:06:05]} 30. g4 {[%emt 0:00:35]} exd4 {[%emt 0:22:50]} 31. Nxd4 {[%emt 0:01:02]} Nxd4+ {[%emt 0:00:28]} 32. exd4 {[%emt 0:00:04]} f5 {[%emt 0:00:31]} 33. f3 {[%emt 0:03:37]} Bg3 {[%emt 0:05:20]} 34. gxf5 {[%emt 0:01:51]} Kf6 {[%emt 0:00:22]} 35. f4 {[%emt 0:00:06]} Bh2 {[%emt 0:01:23]} 36. Kf3 {[%emt 0:09:29]} Bg1 {[%emt 0:01:07]} 37. Ne5 {[%emt 0:00:11]} Bxd4 {[%emt 0:00:07]} 38. Nc6 {[%emt 0:00:06]} Bb6 {[%emt 0:00:14]} 39. Kg4 {[%emt 0:00:10]} Bc7 {[%emt 0:01:23]} 40. Nd4 {[%emt 0:00:09]} Bb6 {[%emt 0:00:45]} 41. Nc6 {[%emt 0:30:07]} Bc7 {[%emt 0:30:12]} 42. Nd4 {[%emt 0:00:08]} Bb6 {[%emt 0:00:04]} 1/2-1/2

[Event "51st Rilton Cup 2023-24"]
[Site "Stockholm"]
[Date "2024.01.04"]
[Round "8.1"]
[White "Trost, Edvin"]
[Black "Sivuk, Vitaly"]
[Result "0-1"]
[ECO "C85"]
[WhiteElo "2434"]
[BlackElo "2490"]
[Annotator "TA"]
[PlyCount "82"]
[EventDate "2023.12.27"]
[EventType "swiss"]
[EventCountry "SWE"]
[SourceTitle "playchess.com"]
[Source "ChessBase"]
[SourceQuality "1"]
[TimeControl "40/5400+30:1800+30"]

{[%evp 13,82,21,26,7,14,15,18,0,9,-97,-100,-131,-127,-151,-153,-169,-172,-279,-262,-266,-192,-203,-200,-191,-176,-243,-239,-346,-348,-337,-344,-447,-435,-468,-443,-528,-537,-594,-593,-608,-574,-1491,-739,-730,-730,-713,-689,-779,-745,-3053,-1226,-29974,-29975,-29984,-1062,-29989,-29981,-29980,-2443,-29976,-1008,-960,-986,-944,-929,-1149,-1103,-945,-837,-791,-739]} 1. e4 {[%emt 0:03:00]} e5 {[%emt 0:08:27]} 2. Nf3 {[%emt 0:00:08]} Nc6 {[%emt 0:00:06]} 3. Bb5 {[%emt 0:00:15]} a6 {[%emt 0:00:12]} 4. Ba4 {[%emt 0:00:04]} Nf6 {[%emt 0:00:10]} 5. O-O {[%emt 0:00:06]} Be7 {[%emt 0:00:09]} 6. Bxc6 {[%emt 0:00:33]} dxc6 {[%emt 0:00:16]} 7. Re1 {[%emt 0:00:05]} Nd7 {[%emt 0:07:04]} 8. b3 {[%emt 0:00:08] C85: Closed Ruy Lopez: Deferred Exchange Variation.} c5 {[%emt 0:02:53]} 9. Bb2 {[%emt 0:00:17]} f6 {[%emt 0:06:02] [#]} 10. Nh4 $146 {[%emt 0:00:12] Threatening Qh5+. The position is equal.} ({Predecessor:} 10. c3 Nb6 11. d3 Bg4 12. Na3 a5 13. Nc2 a4 14. Ne3 Bh5 15. Nf5 O-O 16. Ba3 {½-½ Voiculescu,C (2532)-Marek,S (2442) EU-chT8 fin email 2012 [7]}) 10... g6 {[%emt 0:05:01][%cal Bg7g6,Bg6g5][%mdl 32] [#] Repels Qh5} 11. f4 {[%emt 0:03:22]} exf4 $17 {[%emt 0:06:09]} 12. Nc3 {[%emt 0:00:42]} Ne5 {[%emt 0:02:38]} 13. Nd5 {[%emt 0:40:10] [#]} Bg4 $1 {[%emt 0:04:15]} 14. Qc1 {[%emt 0:02:00]} g5 {[%emt 0:03:12]} 15. Bxe5 {[%emt 0:01:39]} (15. h3 {might work better.}) 15... fxe5 $19 {[%emt 0:00:22]} (15... gxh4 16. Bxc7 (16. Nxc7+ Kf7 $18) 16... Qd7 17. Bxf4 $18) 16. Qb2 {[%emt 0:00:05]} Bd6 {[%emt 0:16:35]} 17. Nf5 {[%emt 0:00:29]} Rf8 {[%emt 0:00:16]} 18. b4 {[%emt 0:15:26]} cxb4 {[%emt 0:09:33]} 19. Kh1 {[%emt 0:03:58]} (19. Nxb4 $142 Bxf5 20. exf5) 19... Qd7 {[%emt 0:10:16]} (19... Bxf5 20. exf5 c6 21. Nxb4 (21. Rxe5+ $2 Kd7 $19)) 20. d4 {[%emt 0:01:08]} (20. Nxd6+ $142 Qxd6 21. Qxb4) 20... O-O-O {[%emt 0:06:38]} 21. c4 {[%emt 0:06:25]} Bxf5 {[%emt 0:03:04]} 22. exf5 {[%emt 0:00:42]} exd4 {[%emt 0:00:06]} ({And not} 22... Qxf5 23. dxe5 Bc5 24. e6 $19) 23. Qxd4 {[%emt 0:00:43] Threatens to win with Qa7.} Kb8 {[%emt 0:00:06] Prevents Qa7+} (23... Qxf5 $2 {too greedy.} 24. Rad1 c6 25. c5 Qxd5 26. cxd6 Qxd4 27. Rxd4 $19) ({Worse is} 23... Rxf5 24. Qa7 Qc6 25. Re7 $17) 24. f6 {[%emt 0:00:55]} c6 {[%emt 0:01:12]} 25. Nb6 {[%emt 0:00:46]} Qf5 {[%emt 0:03:03] ...Bc5 would be deadly.} 26. Rad1 {[%emt 0:00:01]} f3 {[%emt 0:01:22] ...Bc5 is the strong threat.} 27. c5 {[%emt 0:03:36]} Bc7 {[%emt 0:02:10]} (27... Bxc5 $142 28. Qxd8+ Rxd8 29. Rxd8+ Kc7) 28. Qf2 {[%emt 0:06:43]} g4 {[%emt 0:00:38] Strongly threatening ...Rxd1.} 29. Rxd8+ {[%emt 0:00:59]} Rxd8 {[%emt 0:00:14]} 30. gxf3 {[%emt 0:00:34]} Qxf6 {[%emt 0:00:58]} 31. Re3 {[%emt 0:00:56]} Ka7 {[%emt 0:00:30]} (31... Qf4 $142 32. Kg1 gxf3 33. Qxf3 Qg5+ 34. Kh1 Qxc5 35. Nd7+ Rxd7 36. Re8+ Ka7) 32. Nc4 {[%emt 0:01:10]} Rd1+ {[%emt 0:00:55]} 33. Kg2 {[%emt 0:00:14]} Qg5 {[%emt 0:00:27]} (33... gxf3+ $142 34. Rxf3 Qg6+ 35. Rg3 Bxg3 36. Qxg3 Qc2+ 37. Kf3 Qxc4 38. Qe5 Rd3+ 39. Kf2 Qxa2+ 40. Qe2 b3 41. Ke1 Rc3 42. Qh5 b2 43. Qf5 b1=Q+ 44. Qxb1 Qxb1+ 45. Kf2 Qb2+ 46. Kg1 Rc1#) 34. Re4 {[%emt 0:00:39]} gxf3+ {[%emt 0:00:16]} 35. Kxf3 {[%emt 0:00:02]} Qf5+ {[%emt 0:00:13]} (35... Qh5+ $142 36. Ke3 Qh3+ 37. Qf3 Re1+ {[%mdl 64] Deflection} 38. Kd2 Qxf3 39. Rxe1 Qd5+ 40. Ke2 Qxc4+ 41. Kf3 Qd5+ 42. Ke2 Qc4+ 43. Kf3 Qd5+ 44. Ke2 Qxa2+ 45. Kf3 Qd5+ 46. Ke2 Qxc5 47. Kd3 b3 48. h3 Bb6 49. Ke4 Qb4+ 50. Ke5 Qxe1+ 51. Kf6 b2 52. h4 b1=Q 53. h5 Bd4+ 54. Kg5 Qg3+ 55. Kh6 Qg7#) 36. Ke3 {[%emt 0:00:03]} Qxc5+ {[%emt 0:00:26]} (36... Qh3+ $142 37. Qf3 Re1+ {[%mdl 64] Deflection} 38. Kd2 Qxf3 39. Rxe1 Qd5+ 40. Ke3 Qxc5+ 41. Kd3 Qd5+ {[%mdl 64] Deflection} 42. Ke3 Qxc4 43. Rd1 Bb6+ 44. Kf3 Qxa2 45. Kf4 Qxh2+ 46. Kg5 Qg3+ 47. Kf6 Qf3+ 48. Ke7 Qxd1 49. Ke6 Qd5+ 50. Kf6 Bc5 51. Kg7 Bd4+ 52. Kf8 Qd7 53. Kg8 Qg7#) 37. Ke2 {[%emt 0:00:20] Black is clearly winning.} Qxf2+ {[%emt 0:00:05]} 38. Kxf2 {[%emt 0:00:03]} b5 {[%emt 0:01:10]} 39. Ne3 {[%emt 0:00:01]} Rd2+ {[%emt 0:00:08]} 40. Kf3 {[%emt 0:00:02]} Rxh2 {[%emt 0:00:24]} 41. Rxb4 {[%emt 0:30:08]} Rxa2 {[%emt 0:30:11] Black took control after the opening.   Weighted Error Value: White=0.86/Black=0.23 (precise)} 0-1